fUST/lending_fUST_20250606
["ID","MTS","AMOUNT","RATE_DAILY","PERIOD"]
[364724452,1749220252430,-1801.78,0.00021095,2]
[364724454,1749220252440,-440.0,0.00021095,2]
[364724456,1749220252453,-440.0,0.00021095,2]
[364724458,1749220252463,-715.44,0.00021095,2]
[364724460,1749220252472,-1073.85,0.00021095,2]
[364724462,1749220252482,-911.83,0.00021095,2]
[364724464,1749220252492,-440.0,0.00021095,2]
[364724466,1749220252502,-440.0,0.00021095,2]
[364724468,1749220252511,-1133.7,0.00021095,2]
[364724470,1749220252520,-558.24,0.00021095,2]
[364724472,1749220252529,-1638.58,0.00021095,2]
[364724474,1749220252540,-440.0,0.00021095,2]
[364724476,1749220252550,-464.68,0.000211,2]
[364724478,1749220252559,-1171.51239175,0.00021107,4]
[364724480,1749220252570,-1000.0,0.00021112,2]
[364724482,1749220252579,-151.0,0.000212,3]
[364724484,1749220252589,-1171.51239175,0.00021279,5]
[364724486,1749220252598,-440.0,0.00021369,2]
[364724488,1749220252607,-424.71826675,0.00021369,2]
[364724490,1749220252617,-575.48,0.00021369,2]
[364724492,1749220252626,-913.64,0.00021369,2]
[364724494,1749220252635,-828.08,0.00021369,2]
[364724496,1749220252644,-440.0,0.00021369,2]
[364724497,1749220252653,-1086.4,0.00021369,2]
[364724499,1749220252663,-440.0,0.00021369,2]
[364724501,1749220252672,-440.0,0.00021369,2]
[364724503,1749220252681,-987.79,0.00021369,2]
[364724505,1749220252690,-440.0,0.00021369,2]
[364724507,1749220252700,-1765.1,0.00021369,2]
[364724509,1749220252710,-440.0,0.00021369,2]
[364724511,1749220252719,-345.30816701,0.00021369,2]
[364724513,1749220252728,-440.0,0.00021369,2]
[364724516,1749220252738,-506.73,0.00021369,2]
[364724517,1749220252747,-440.0,0.00021369,2]
[364724519,1749220252757,-515.58,0.00021369,2]
[364724521,1749220252768,-1801.78,0.00021369,2]
[364724523,1749220252777,-355.56,0.00021369,2]
[364724525,1749220252787,-440.0,0.00021369,2]
[364724527,1749220252796,-715.44,0.00021369,2]
[364724530,1749220252806,-1073.85,0.00021369,2]
[364724531,1749220252815,-911.83,0.00021369,2]
[364724534,1749220252824,-440.0,0.00021369,2]
[364724535,1749220252833,-440.0,0.00021369,2]
[364724537,1749220252842,-1133.7,0.00021369,2]
[364724539,1749220252851,-1638.58,0.00021369,2]
[364724541,1749220252860,-440.0,0.00021369,2]
[364724544,1749220252870,-151.0,0.000214,4]
[364724545,1749220252879,-150.0,0.00021432,2]
[364724547,1749220252888,-1171.51239175,0.00021452,5]
[364724549,1749220252897,-1171.51239175,0.00021624,5]
[364724551,1749220252907,-440.0,0.00021643,2]
[364724553,1749220252917,-913.64,0.00021643,2]
[364724555,1749220252926,-828.08,0.00021643,2]
[364724557,1749220252935,-440.0,0.00021643,2]
[364724559,1749220252944,-1086.4,0.00021643,2]
[364724561,1749220252953,-440.0,0.00021643,2]
[364724563,1749220252962,-440.0,0.00021643,2]
[364724565,1749220252972,-987.79,0.00021643,2]
[364724567,1749220252982,-440.0,0.00021643,2]
[364724569,1749220252992,-1765.1,0.00021643,2]
[364724571,1749220253002,-440.0,0.00021643,2]
[364724573,1749220253011,-440.0,0.00021643,2]
[364724575,1749220253021,-506.73,0.00021643,2]
[364724577,1749220253030,-440.0,0.00021643,2]
[364724579,1749220253039,-515.58,0.00021643,2]
[364724581,1749220253048,-1801.78,0.00021643,2]
[364724583,1749220253057,-440.0,0.00021643,2]
[364724585,1749220253067,-715.44,0.00021643,2]
[364724587,1749220253076,-1073.85,0.00021643,2]
[364724589,1749220253086,-911.83,0.00021643,2]
[364724591,1749220253095,-383.4923053,0.00021643,2]
[364724593,1749220253104,-1133.7,0.00021643,2]
[364724595,1749220253113,-1638.58,0.00021643,2]
[364724597,1749220253123,-440.0,0.00021643,2]
[364724599,1749220253132,-1500.0,0.0002166,2]
[364724601,1749220253141,-151.0,0.000217,4]
[364724612,1749220253231,-500.0,0.0002176,2]
[364724614,1749220253251,-1171.51239175,0.00021797,6]
[364724616,1749220253260,-915.24275948,0.00021899,2]
[364724618,1749220253270,-412.76424617,0.00021917,2]
[364724620,1749220253280,-913.64,0.00021917,2]
[364724622,1749220253289,-828.08,0.00021917,2]
[364724624,1749220253298,-440.0,0.00021917,2]
[364724626,1749220253308,-1086.4,0.00021917,2]
[364724628,1749220253317,-440.0,0.00021917,2]
[364724630,1749220253327,-440.0,0.00021917,2]
[364724632,1749220253336,-987.79,0.00021917,2]
[364724634,1749220253345,-440.0,0.00021917,2]
[364724636,1749220253355,-1765.1,0.00021917,2]
[364724638,1749220253366,-440.0,0.00021917,2]
[364724640,1749220253379,-440.0,0.00021917,2]
[364724642,1749220253389,-506.73,0.00021917,2]
[364724644,1749220253398,-440.0,0.00021917,2]
[364724646,1749220253409,-515.58,0.00021917,2]
[364724648,1749220253422,-1801.78,0.00021917,2]
[364724650,1749220253432,-440.0,0.00021917,2]
[364724652,1749220253442,-715.44,0.00021917,2]
[364724654,1749220253453,-1073.85,0.00021917,2]
[364724656,1749220253462,-911.83,0.00021917,2]
[364724658,1749220253472,-1133.7,0.00021917,2]
[364724661,1749220253482,-1638.58,0.00021917,2]
[364724662,1749220253491,-440.0,0.00021917,2]
[364724664,1749220253500,-1171.51239175,0.00021969,6]
[364724666,1749220253509,-58715.67,0.00022,7]
[364724668,1749220253519,-10656.09,0.00022,2]
[364724670,1749220253529,-842.5625,0.00022,7]
[364724672,1749220253538,-5364.40417707,0.00022,2]
[364724674,1749220253547,-11849.89752062,0.00022,7]
[364724676,1749220253557,-447.25,0.000221,7]
[364724678,1749220253566,-1171.51239175,0.00022141,6]
[364724680,1749220253575,-913.64,0.00022191,2]
[364724683,1749220253584,-828.08,0.00022191,2]
[364724684,1749220253593,-440.0,0.00022191,2]
[364724686,1749220253603,-1086.4,0.00022191,2]
[364724688,1749220253612,-440.0,0.00022191,2]
[364724690,1749220253621,-440.0,0.00022191,2]
[364724692,1749220253630,-987.79,0.00022191,2]
[364724694,1749220253639,-440.0,0.00022191,2]
[364724697,1749220253649,-1765.1,0.00022191,2]
[364724698,1749220253658,-440.0,0.00022191,2]
[364724700,1749220253669,-440.0,0.00022191,2]
[364724703,1749220253678,-506.73,0.00022191,2]
[364724704,1749220253687,-440.0,0.00022191,2]
[364724706,1749220253696,-515.58,0.00022191,2]
[364724708,1749220253705,-1801.78,0.00022191,2]
[364724710,1749220253714,-533.7,0.00022191,2]
[364724712,1749220253723,-715.44,0.00022191,2]
[364724714,1749220253733,-1073.85,0.00022191,2]
[364724716,1749220253742,-911.83,0.00022191,2]
[364724718,1749220253751,-1133.7,0.00022191,2]
[364724720,1749220253760,-1638.58,0.00022191,2]
[364724722,1749220253769,-440.0,0.00022191,2]
[364724724,1749220253778,-389.94644228,0.00022208,2]
[364724726,1749220253787,-1171.51239175,0.00022314,7]
[364724728,1749220253797,-913.64,0.00022465,2]
[364724730,1749220253806,-828.08,0.00022465,2]
[364724732,1749220253814,-440.0,0.00022465,2]
[364724734,1749220253823,-1086.4,0.00022465,2]
[364724736,1749220253833,-440.0,0.00022465,2]
[364724738,1749220253842,-440.0,0.00022465,2]
[364724740,1749220253851,-987.79,0.00022465,2]
[364724742,1749220253860,-440.0,0.00022465,2]
[364724744,1749220253870,-1765.1,0.00022465,2]
[364724746,1749220253879,-440.0,0.00022465,2]
[364724748,1749220253888,-440.0,0.00022465,2]
[364724750,1749220253897,-506.73,0.00022465,2]
[364724752,1749220253906,-440.0,0.00022465,2]
[364724754,1749220253916,-515.58,0.00022465,2]
[364724756,1749220253925,-1801.78,0.00022465,2]
[364724758,1749220253934,-715.44,0.00022465,2]
[364724760,1749220253943,-1073.85,0.00022465,2]
[364724762,1749220253953,-911.83,0.00022465,2]
[364724764,1749220253962,-1133.7,0.00022465,2]
[364724765,1749220253972,-1638.58,0.00022465,2]
[364724766,1749220253981,-440.0,0.00022465,2]
[364724767,1749220253990,-1171.51239175,0.00022486,7]
[364724768,1749220254000,-464.68,0.000225,7]
[364724769,1749220254009,-587.0,0.00022573,2]
[364724770,1749220254019,-1171.51239175,0.00022659,7]
[364724772,1749220254028,-913.64,0.00022739,2]
[364724774,1749220254038,-828.08,0.00022739,2]
[364724776,1749220254048,-440.0,0.00022739,2]
[364724778,1749220254056,-1086.4,0.00022739,2]
[364724780,1749220254066,-440.0,0.00022739,2]
[364724782,1749220254075,-385.7,0.00022739,2]
[364724784,1749220254084,-987.79,0.00022739,2]
[364724786,1749220254094,-440.0,0.00022739,2]
[364724788,1749220254103,-1765.1,0.00022739,2]
[364724791,1749220254113,-440.0,0.00022739,2]
[364724793,1749220254122,-440.0,0.00022739,2]
[364724795,1749220254131,-506.73,0.00022739,2]
[364724797,1749220254141,-440.0,0.00022739,2]
[364724799,1749220254150,-515.58,0.00022739,2]
[364724801,1749220254159,-1801.78,0.00022739,2]
[364724803,1749220254169,-715.44,0.00022739,2]
[364724805,1749220254178,-1073.85,0.00022739,2]
[364724807,1749220254188,-911.83,0.00022739,2]
[364724809,1749220254198,-1133.7,0.00022739,2]
[364724811,1749220254207,-1638.58,0.00022739,2]
[364724813,1749220254217,-440.0,0.00022739,2]
[364724815,1749220254226,-587.0,0.00022759,2]
[364724817,1749220254235,-1031.0,0.00022793,2]
[364724819,1749220254245,-1171.51239175,0.00022831,8]
[364724821,1749220254255,-500.0,0.00022856,2]
[364724823,1749220254264,-207.4,0.00022937,2]
[364724825,1749220254273,-2553.74923471,0.00022937,2]
[364724827,1749220254282,-974.114,0.00022985,2]
[364724829,1749220254291,-7509.0,0.00023,7]
[364724831,1749220254300,-10000.0,0.00023,2]
[364724833,1749220254309,-151.743375,0.00023,7]
[364724835,1749220254318,-154.9768,0.00023,7]
[364724837,1749220254327,-151.0,0.00023,7]
[364724839,1749220254337,-151.0,0.00023,7]
[364724841,1749220254346,-1171.51239175,0.00023003,8]
[364724843,1749220254356,-913.64,0.00023013,2]
[364724845,1749220254369,-828.08,0.00023013,2]
[364724847,1749220254381,-275.17,0.00023013,2]
[364724849,1749220254390,-1086.4,0.00023013,2]
[364724851,1749220254399,-440.0,0.00023013,2]
[364724853,1749220254408,-987.79,0.00023013,2]
[364724855,1749220254420,-440.0,0.00023013,2]
[364724857,1749220254430,-1765.1,0.00023013,2]
[364724859,1749220254439,-440.0,0.00023013,2]
[364724861,1749220254450,-506.73,0.00023013,2]
[364724863,1749220254460,-440.0,0.00023013,2]
[364724865,1749220254469,-515.58,0.00023013,2]
[364724867,1749220254479,-1801.78,0.00023013,2]
[364724869,1749220254490,-715.44,0.00023013,2]
[364724871,1749220254500,-1073.85,0.00023013,2]
[364724873,1749220254510,-911.83,0.00023013,2]
[364724875,1749220254519,-1133.7,0.00023013,2]
[364724877,1749220254527,-1638.58,0.00023013,2]
[364724879,1749220254537,-440.0,0.00023013,2]
[364724881,1749220254546,-915.24275948,0.00023173,2]
[364724883,1749220254555,-1171.51239175,0.00023176,8]
[364724885,1749220254565,-58715.67,0.000232,7]
[364724887,1749220254574,-10656.09,0.000232,2]
[364724889,1749220254583,-151.980833,0.000232,7]
[364724891,1749220254592,-151.0,0.000232,7]
[364724893,1749220254601,-151.0,0.000232,7]
[364724895,1749220254611,-151.0,0.000232,7]
[364724897,1749220254620,-151.0,0.000232,7]
[364724899,1749220254629,-913.64,0.00023287,2]
[364724901,1749220254639,-828.08,0.00023287,2]
[364724903,1749220254647,-1086.4,0.00023287,2]
[364724905,1749220254657,-440.0,0.00023287,2]
[364724907,1749220254666,-987.79,0.00023287,2]
[364724909,1749220254675,-440.0,0.00023287,2]
[364724911,1749220254685,-1765.1,0.00023287,2]
[364724913,1749220254694,-440.0,0.00023287,2]
[364724915,1749220254703,-506.73,0.00023287,2]
[364724917,1749220254713,-440.0,0.00023287,2]
[364724919,1749220254722,-515.58,0.00023287,2]
[364724921,1749220254731,-1801.78,0.00023287,2]
[364724923,1749220254741,-715.44,0.00023287,2]
[364724925,1749220254750,-1073.85,0.00023287,2]
[364724927,1749220254759,-911.83,0.00023287,2]
[364724929,1749220254769,-1133.7,0.00023287,2]
[364724931,1749220254779,-1638.58,0.00023287,2]
[364724933,1749220254788,-440.0,0.00023287,2]
[364724935,1749220254797,-1171.51239175,0.00023348,9]
[364724937,1749220254807,-447.25,0.000234,7]
[364724939,1749220254816,-153.0,0.00023425,2]
[364724941,1749220254825,-153.0,0.00023425,2]
[364724943,1749220254835,-153.0,0.00023425,2]
[364724945,1749220254844,-47469.57400398,0.000235,2]
[364724947,1749220254854,-151.0,0.00023511,7]
[364724949,1749220254863,-152.406247,0.00023511,7]
[364724951,1749220254872,-151.0,0.00023511,7]
[364724953,1749220254882,-151.0,0.00023511,7]
[364724955,1749220254891,-161.912274,0.00023511,7]
[364724957,1749220254901,-12500.0,0.00023511,3]
[364724959,1749220254911,-160.0,0.00023511,3]
[364724961,1749220254920,-600.0,0.0002352,2]
[364724963,1749220254929,-12500.0,0.0002352,3]
[364724965,1749220254938,-160.0,0.0002352,3]
[364724967,1749220254948,-842.5625,0.0002352,3]
[364724969,1749220254957,-212.976918,0.0002352,3]
[364724971,1749220254966,-229.52673067,0.0002352,3]
[364724973,1749220254975,-160.0,0.0002352,3]
[364724975,1749220254984,-423.83542519,0.0002352,3]
[364724977,1749220254994,-11849.89752062,0.0002352,3]
[364724979,1749220255003,-834.50537533,0.0002352,3]
[364724981,1749220255013,-1171.51239175,0.00023521,9]
[364724983,1749220255022,-1339.761,0.00023525,2]
[364724985,1749220255032,-209.756,0.00023525,2]
[364724987,1749220255041,-405.0,0.00023525,2]
[364724990,1749220255051,-913.64,0.00023561,2]
[364724991,1749220255062,-828.08,0.00023561,2]
[364724993,1749220255072,-1086.4,0.00023561,2]
[364724995,1749220255081,-440.0,0.00023561,2]
[364724997,1749220255091,-987.79,0.00023561,2]
[364724999,1749220255100,-440.0,0.00023561,2]
[364725001,1749220255110,-1765.1,0.00023561,2]
[364725003,1749220255119,-440.0,0.00023561,2]
[364725005,1749220255129,-506.73,0.00023561,2]
[364725016,1749220255139,-440.0,0.00023561,2]
[364725018,1749220255234,-515.58,0.00023561,2]
[364725021,1749220255245,-1801.78,0.00023561,2]
[364725023,1749220255254,-715.44,0.00023561,2]
[364725025,1749220255265,-1073.85,0.00023561,2]
[364725027,1749220255274,-911.83,0.00023561,2]
[364725029,1749220255284,-1133.7,0.00023561,2]
[364725031,1749220255295,-1638.58,0.00023561,2]
[364725033,1749220255305,-440.0,0.00023561,2]
[364725035,1749220255315,-834.50537533,0.000236,3]
[364725037,1749220255325,-1171.51239175,0.00023693,9]
[364725039,1749220255335,-775.70439603,0.00023765,2]
[364725041,1749220255344,-500.0,0.00023773,2]
[364725043,1749220255354,-464.68,0.000238,7]
[364725045,1749220255364,-136605.39988076,0.000238,2]
[364725047,1749220255379,-958151.73961266,0.000238,3]
[364725057,1749220255474,-2930.2817183,0.000238,3]
[364725059,1749220255486,-847.71209681,0.000238,3]
[364725072,1749220255607,-1907.65607604,0.00019166,2]
[364725092,1749220255783,-4279.53113655,0.00019166,2]
[364725094,1749220255792,-440.0,0.00019178,2]
[364725095,1749220255801,-420.0,0.00019178,2]
[364725097,1749220255810,-397.71041272,0.00019178,2]
[364725099,1749220255820,-440.0,0.00019178,2]
[364725101,1749220255828,-431.59622751,0.00019178,2]
[364725103,1749220255838,-410.0,0.00019178,2]
[364725105,1749220255847,-440.0,0.00019452,2]
[364725108,1749220255857,-440.0,0.00019452,2]
[364725109,1749220255866,-440.0,0.00019726,2]
[364725111,1749220255876,-440.0,0.00019726,2]
[364725114,1749220255886,-440.0,0.0002,2]
[364725115,1749220255897,-440.0,0.0002,2]
[364725117,1749220255907,-440.0,0.00020273,2]
[364725119,1749220255917,-440.0,0.00020273,2]
[364725122,1749220255927,-440.0,0.00020547,2]
[364725123,1749220255937,-440.0,0.00020547,2]
[364725126,1749220255946,-440.0,0.00020821,2]
[364725127,1749220255955,-440.0,0.00020821,2]
[364725129,1749220255964,-209.13,0.00021095,2]
[364725132,1749220255973,-6025.54056446,0.000238,3]
[364725136,1749220256002,-257.211118,0.00021095,2]
[364725141,1749220256039,-65.148882,0.00021095,2]
[364725143,1749220256048,-12467.82724972,0.000238,3]
[364725169,1749220256283,483.66584419,0.00019,2]
[364725172,1749220256305,9954.45949165,0.00019,2]
[364726961,1749220274927,198.30099105,0.00018603,2]
[364730459,1749220400824,150.0,0.00018482,2]
[364730460,1749220442828,300.0,0.00018999,2]
[364730462,1749220502606,300.0,0.00018999,2]
[364730463,1749220502681,300.0,0.00018999,2]
[364730464,1749220509051,1200.0,0.00018999,2]
[364730465,1749220536033,6615.8933173,0.00018178,2]
[364730466,1749220536057,735.5824982,0.00018178,2]
[364730467,1749220548530,300.0,0.00018999,2]
[364730468,1749220562298,300.0,0.00018999,2]
[364730470,1749220623574,300.0,0.00018999,2]
[364730472,1749220753137,150.0,0.00018483,2]
[364730473,1749220802825,300.0,0.00018999,2]
[364730474,1749220804560,1200.0,0.00018999,2]
[364730475,1749220832765,150.0,0.00018721,2]
[364730476,1749220847443,300.0,0.00018999,2]
[364730477,1749220922447,300.0,0.00018999,2]
[364730480,1749220969901,223.847431,0.00013699,2]
[364730481,1749220971463,150.0,0.00018497,2]
[364730483,1749220983015,300.0,0.00018999,2]
[364730487,1749221042283,300.0,0.00018999,2]
[364730488,1749221071438,462.617926,0.00018176,2]
[364730489,1749221098169,3000.0,0.00024649,120]
[364730490,1749221102739,300.0,0.00018999,2]
[364730491,1749221102832,300.0,0.00018999,2]
[364730492,1749221103487,300.0,0.00018999,2]
[364730493,1749221104679,1200.0,0.00018999,2]
[364730494,1749221110650,150.0,0.00018709,2]
[364730497,1749221144107,3836.83268083,0.00016484,2]
[364730498,1749221148406,300.0,0.00018999,2]
[364730500,1749221163002,300.0,0.00018999,2]
[364730503,1749221177556,150.0,0.0001856,2]
[364730504,1749221179011,207.42228771,0.00018602,2]
[364730507,1749221204102,-236.80341428,0.00019,2]
[364730509,1749221222953,300.0,0.00018999,2]
[364730510,1749221231098,-7757.50457079,0.00019,2]
[364730512,1749221243096,-976.05565365,0.00019,2]
[364730513,1749221251131,150.0,0.00018019,2]
[364730514,1749221251559,150.0,0.00018877,2]
[364730515,1749221252123,-8049.63636128,0.00019,2]
[364730516,1749221252145,-481.41420703,0.00019,2]
[364730517,1749221252167,-461.22,0.00019168,3]
[364730518,1749221252189,-307.44,0.00019168,3]
[364730519,1749221252210,-500.0,0.00019173,2]
[364730520,1749221252231,-500.0,0.00019173,2]
[364730521,1749221252252,-500.0,0.00019173,2]
[364730522,1749221252274,-448.21050814,0.00019173,2]
[364730523,1749221252295,-500.83294456,0.00019173,2]
[364730524,1749221252316,-500.0,0.00019173,2]
[364730525,1749221252337,-502.19685851,0.00019173,2]
[364730526,1749221252358,-500.0,0.00019173,2]
[364730527,1749221252378,-500.0,0.00019173,2]
[364730528,1749221252400,-500.0,0.00019173,2]
[364730529,1749221252420,-500.0,0.00019173,2]
[364730530,1749221252440,-500.95406167,0.00019173,2]
[364730531,1749221252462,-222.816,0.00019173,2]
[364730532,1749221252483,-500.0,0.00019176,2]
[364730533,1749221252505,-358.35450349,0.00019176,2]
[364730534,1749221252526,-500.0,0.00019176,2]
[364730535,1749221252548,-500.0,0.00019176,2]
[364730536,1749221252569,-394.98746746,0.00019176,2]
[364730537,1749221252590,-624.85139549,0.00019176,2]
[364730538,1749221252612,-500.0,0.00019176,2]
[364730539,1749221252634,-541.23579912,0.00019176,2]
[364730540,1749221252654,-500.0,0.00019176,2]
[364730541,1749221252676,-500.0,0.00019176,2]
[364730542,1749221252699,-500.0,0.00019176,2]
[364730543,1749221252724,-541.23579912,0.00019176,2]
[364730544,1749221252744,-500.0,0.00019176,2]
[364730545,1749221252767,-183.93799025,0.00019176,2]
[364730555,1749221272292,367.2917299,0.00018336,2]
[364730556,1749221305682,811.75884716,0.000189,2]
[364730557,1749221327729,150.0,0.00018568,2]
[364730562,1749221410522,150.0,0.00018014,2]
[364730563,1749221411025,150.0,0.00018872,2]
[364730564,1749221416432,653.88893927,0.000189,2]
[364730637,1749221432562,-3726.41862182,0.00019078,2]
[364730639,1749221432572,-797.06,0.00019168,3]
[364730641,1749221432581,-317.47393078,0.00019173,2]
[364730643,1749221432591,-300.0,0.00019174,2]
[364730645,1749221432600,-300.0,0.00019174,2]
[364730647,1749221432609,-300.0,0.00019174,2]
[364730649,1749221432619,-300.0,0.00019174,2]
[364730651,1749221432629,-1200.0,0.00019174,2]
[364730653,1749221432638,-500.0,0.00019175,2]
[364730655,1749221432647,-500.0,0.00019175,2]
[364730657,1749221432657,-500.0,0.00019175,2]
[364730659,1749221432667,-500.0,0.00019175,2]
[364730661,1749221432677,-500.0,0.00019175,2]
[364730663,1749221432686,-500.0,0.00019175,2]
[364730665,1749221432696,-321.94709673,0.00019175,2]
[364730667,1749221432705,-500.0,0.00019175,2]
[364730669,1749221432714,-500.0,0.00019175,2]
[364730671,1749221432723,-500.0,0.00019175,2]
[364730673,1749221432733,-500.0,0.00019175,2]
[364730675,1749221432742,-500.0,0.00019175,2]
[364730677,1749221432752,-500.0,0.00019175,2]
[364730679,1749221432762,-500.0,0.00019175,2]
[364730681,1749221432773,-500.0,0.00019175,2]
[364730683,1749221432783,-500.0,0.00019175,2]
[364730685,1749221432793,-500.0,0.00019175,2]
[364730687,1749221432803,-500.0,0.00019175,2]
[364730689,1749221432813,-500.0,0.00019175,2]
[364730691,1749221432823,-500.0,0.00019175,2]
[364730693,1749221432833,-500.0,0.00019175,2]
[364730695,1749221432842,-500.0,0.00019175,2]
[364730697,1749221432853,-500.0,0.00019175,2]
[364730699,1749221432864,-500.0,0.00019175,2]
[364730701,1749221432873,-500.0,0.00019175,2]
[364730703,1749221432883,-500.0,0.00019175,2]
[364730705,1749221432892,-500.0,0.00019175,2]
[364730708,1749221432902,-500.0,0.00019175,2]
[364730709,1749221432911,-223.61289716,0.00019175,2]
[364730712,1749221432921,-500.0,0.00019175,2]
[364730713,1749221432930,-500.0,0.00019175,2]
[364730715,1749221432940,-500.0,0.00019175,2]
[364730717,1749221432949,-500.0,0.00019175,2]
[364730719,1749221432958,-500.0,0.00019175,2]
[364730721,1749221432968,-500.0,0.00019175,2]
[364730723,1749221432977,-500.0,0.00019175,2]
[364730725,1749221432987,-500.0,0.00019175,2]
[364730727,1749221432996,-500.0,0.00019175,2]
[364730729,1749221433006,-500.0,0.00019175,2]
[364730731,1749221433015,-420.0768118,0.00019175,2]
[364730734,1749221433025,-500.0,0.00019175,2]
[364730736,1749221433035,-500.0,0.00019175,2]
[364730737,1749221433044,-500.0,0.00019175,2]
[364730740,1749221433054,-500.0,0.00019175,2]
[364730742,1749221433066,-500.0,0.00019175,2]
[364730744,1749221433075,-500.0,0.00019175,2]
[364730746,1749221433086,-500.0,0.00019175,2]
[364730748,1749221433095,-500.0,0.00019175,2]
[364730750,1749221433105,-500.0,0.00019175,2]
[364730752,1749221433114,-500.0,0.00019175,2]
[364730754,1749221433123,-500.0,0.00019175,2]
[364730756,1749221433133,-500.0,0.00019175,2]
[364730758,1749221433142,-500.0,0.00019175,2]
[364730760,1749221433151,-500.0,0.00019175,2]
[364730762,1749221433160,-500.0,0.00019175,2]
[364730764,1749221433169,-500.0,0.00019175,2]
[364730766,1749221433178,-500.0,0.00019175,2]
[364730768,1749221433188,-500.0,0.00019175,2]
[364730770,1749221433197,-500.0,0.00019175,2]
[364730772,1749221433207,-500.0,0.00019175,2]
[364730774,1749221433216,-500.0,0.00019175,2]
[364730776,1749221433225,-500.0,0.00019175,2]
[364730777,1749221433234,-500.0,0.00019175,2]
[364730780,1749221433244,-500.0,0.00019175,2]
[364730781,1749221433253,-500.0,0.00019175,2]
[364730783,1749221433262,-500.0,0.00019175,2]
[364730786,1749221433273,-500.0,0.00019175,2]
[364730787,1749221433282,-500.0,0.00019175,2]
[364730789,1749221433291,-500.0,0.00019175,2]
[364730791,1749221433300,-500.0,0.00019175,2]
[364730793,1749221433310,-500.0,0.00019175,2]
[364730795,1749221433319,-500.0,0.00019175,2]
[364730797,1749221433329,-500.0,0.00019175,2]
[364730799,1749221433338,-500.0,0.00019175,2]
[364730801,1749221433348,-500.0,0.00019175,2]
[364730803,1749221433357,-500.0,0.00019175,2]
[364730806,1749221433367,-500.0,0.00019175,2]
[364730808,1749221433376,-500.0,0.00019175,2]
[364730810,1749221433385,-500.0,0.00019175,2]
[364730811,1749221433394,-500.0,0.00019175,2]
[364730814,1749221433405,-426.81926375,0.00019175,2]
[364730816,1749221433414,-624.84024158,0.00019175,2]
[364730818,1749221433425,-624.84024158,0.00019175,2]
[364730819,1749221433435,-624.84024158,0.00019175,2]
[364730821,1749221433445,-624.84024158,0.00019175,2]
[364730823,1749221433454,-624.84024158,0.00019175,2]
[364730825,1749221433464,-624.84024158,0.00019175,2]
[364730827,1749221433473,-500.0,0.00019175,2]
[364730829,1749221433483,-624.84024158,0.00019175,2]
[364730831,1749221433492,-500.0,0.00019175,2]
[364730833,1749221433502,-624.84024158,0.00019175,2]
[364730835,1749221433512,-624.84024158,0.00019175,2]
[364730837,1749221433522,-624.84024158,0.00019175,2]
[364730839,1749221433531,-624.84024158,0.00019175,2]
[364730841,1749221433540,-624.84024158,0.00019175,2]